bitfinex-derivatives/quotes_BTCF0:USTF0_20251209
["timestamp","ask_amount","ask_price","bid_price","bid_amount"]
[1765256453979,0.46458999,89964.0,89963.0,0.0161147]
[1765256454781,0.14458999,89964.0,89963.0,0.0448547]
[1765256456081,0.14459094,89964.0,89963.0,0.0448547]
[1765256456585,0.14459094,89964.0,89963.0,0.0161147]
[1765256460692,0.50459094,89964.0,89963.0,0.005]
[1765256464189,0.50459094,89964.0,89955.0,0.00016674]
[1765256464190,0.0728856,89956.0,89955.0,0.00016674]
[1765256464385,0.0728856,89956.0,89940.0,0.02874]
[1765256464386,0.06177,89941.0,89940.0,0.02874]
[1765256465394,0.06177,89941.0,89940.0,0.0398576]
[1765256465589,0.06177,89941.0,89940.0,0.08446285]
[1765256466492,0.06177,89941.0,89940.0,0.47446285]
[1765256466694,0.06277,89941.0,89940.0,0.47646285]
[1765256467286,0.06377,89941.0,89940.0,0.47746285]
[1765256467591,0.06477,89941.0,89940.0,0.47646285]
[1765256467890,0.06377,89941.0,89940.0,0.47546285]
[1765256468090,0.06477,89941.0,89940.0,0.47546285]
[1765256469979,0.06477,89941.0,89940.0,0.4645976]
[1765256470786,0.42477,89941.0,89940.0,0.06348]
[1765256472394,0.42477,89941.0,89940.0,0.001]
[1765256473498,0.42477,89941.0,89940.0,0.05776]
[1765256473499,0.17477,89941.0,89940.0,0.05776]
[1765256475200,0.06477,89941.0,89940.0,0.05776]
[1765256476294,0.06477,89941.0,89940.0,0.43776]
[1765256476692,0.03339,89941.0,89940.0,0.43776]
[1765256476894,0.003,89941.0,89940.0,0.43776]
[1765256477899,0.03088,89941.0,89940.0,0.43776]
[1765256478201,0.05863,89941.0,89940.0,0.43776]
[1765256488499,0.003,89941.0,89940.0,0.43776]
[1765256489409,0.03088,89941.0,89940.0,0.43776]
[1765256490809,0.003,89941.0,89940.0,0.43776]
[1765256493402,0.03088,89941.0,89940.0,0.43776]
[1765256494606,0.003,89941.0,89940.0,0.43776]
[1765256496215,0.03088,89941.0,89940.0,0.43776]
[1765256497419,0.003,89941.0,89940.0,0.43776]
[1765256501516,0.03088,89941.0,89940.0,0.43776]
[1765256501708,0.05863,89941.0,89940.0,0.43776]
[1765256503621,0.03088,89941.0,89940.0,0.43776]
[1765256505714,0.003,89941.0,89940.0,0.43776]
[1765256506114,0.03291,89941.0,89940.0,0.43776]
[1765256508327,0.003,89941.0,89940.0,0.44681]
[1765256509123,0.003,89941.0,89940.0,0.43776]
[1765256509325,0.0616,89941.0,89940.0,0.43776]
[1765256515634,0.003,89941.0,89940.0,0.43776]
[1765256517629,0.003,89941.0,89940.0,0.49822]
[1765256517824,0.003,89941.0,89940.0,0.44822]
[1765256518324,0.003,89941.0,89940.0,0.43776]
[1765256518531,0.03291,89941.0,89940.0,0.43776]
[1765256519132,0.0616,89941.0,89940.0,0.43776]
[1765256526842,0.00016674,89949.0,89940.0,0.58751]
[1765256527132,0.05825,89961.0,89960.0,0.0685751]
[1765256527329,0.02953,89961.0,89960.0,0.4885751]
[1765256528433,0.03053,89961.0,89960.0,0.4915751]
[1765256529649,0.03153,89961.0,89960.0,0.4935751]
[1765256530749,0.002,89961.0,89960.0,0.4935751]
[1765256530946,0.002,89961.0,89960.0,0.5025251]
[1765256531153,0.002,89961.0,89960.0,0.5525251]
[1765256532551,0.002,89961.0,89960.0,0.5435751]
[1765256533250,0.002,89961.0,89960.0,0.5525251]
[1765256533846,0.03196,89961.0,89960.0,0.5435751]
[1765256534446,0.002,89961.0,89960.0,0.5435751]
[1765256541871,0.002,89961.0,89960.0,2.0435751]
[1765256544364,0.002,89961.0,89960.0,1.9935751]
[1765256544570,0.002,89961.0,89960.0,2.0435751]
[1765256547775,1e-07,89961.0,89960.0,2.0435751]
[1765256547984,0.05852674,89969.0,89968.0,0.0705941]
[1765256548175,0.05852674,89969.0,89968.0,0.9763941]
[1765256548373,0.03012674,89969.0,89968.0,0.9763941]
[1765256549274,0.03112674,89969.0,89968.0,0.9773941]
[1765256549974,0.03212674,89969.0,89968.0,0.9793941]
[1765256551173,0.00216674,89969.0,89968.0,0.9793941]
[1765256553179,0.00216674,89969.0,89968.0,1.0293941]
[1765256554169,0.00216674,89969.0,89968.0,0.9793941]
[1765256556581,0.00216674,89969.0,89968.0,1.05914499]
[1765256557482,0.00216674,89969.0,89968.0,0.9793941]
[1765256559880,0.02996,89985.0,89984.0,0.0705921]
[1765256560183,0.05836,89985.0,89984.0,0.9863521]
[1765256560374,0.07479,89985.0,89984.0,0.9863521]
[1765256561081,0.07679,89985.0,89984.0,0.9873521]
[1765256561287,0.07779,89985.0,89984.0,1.00046683]
[1765256562372,0.06136,89985.0,89984.0,1.00046683]
[1765256562574,0.05936,89985.0,89984.0,0.99946683]
[1765256562772,0.002,89985.0,89984.0,1.00046683]
[1765256562970,0.002,89985.0,89984.0,1.08045897]
[1765256563372,0.002,89985.0,89984.0,1.00046683]
[1765256564178,0.03,89985.0,89984.0,1.00046683]
[1765256566979,0.002,89985.0,89984.0,1.00046683]
[1765256567186,1e-07,89985.0,89984.0,1.00046683]
[1765256567387,1e-07,89985.0,89984.0,1.08045897]
[1765256568390,1e-07,89985.0,89984.0,1.00046683]
[1765256568785,1e-07,89985.0,89984.0,1.08045897]
[1765256570385,1e-07,89985.0,89984.0,1.00046683]
[1765256572094,0.00016674,89993.0,89992.0,0.0696911]
[1765256572288,0.07207,90000.0,89999.0,0.0696903]
[1765256572489,0.07207,90000.0,89999.0,0.9653703]
[1765256572684,0.0551,90000.0,89999.0,0.9653703]
[1765256573985,0.0561,90000.0,89999.0,0.9653703]
[1765256574898,0.029,90000.0,89999.0,0.9653703]
[1765256575691,0.001,90000.0,89999.0,0.9653703]
[1765256576597,0.05526674,90008.0,90007.0,0.0696893]
[1765256576794,0.05526674,90008.0,90007.0,0.9453293]
[1765256576995,0.00016674,90008.0,90007.0,0.9453293]
[1765256578005,0.00116674,90008.0,90007.0,0.9473293]
[1765256579202,0.00116674,90008.0,90007.0,0.9493293]
[1765256579402,0.02916674,90008.0,90007.0,0.9493293]
[1765256579703,0.05626674,90008.0,90007.0,0.9493293]
[1765256580306,0.00116674,90008.0,90007.0,0.9493293]
[1765256581108,0.02916674,90008.0,90007.0,0.9493293]
[1765256581407,0.05626674,90008.0,90007.0,0.9493293]
[1765256586910,0.05626674,90008.0,90007.0,0.6993293]
[1765256587117,0.05626674,90008.0,90007.0,1.0093293]
[1765256587707,0.05626674,90008.0,90007.0,0.51952]
[1765256587913,0.05626674,90008.0,89998.0,0.01127714]
[1765256587914,0.0573,89999.0,89998.0,0.01127714]
[1765256589318,0.0623,89999.0,89998.0,0.01227714]
[1765256589999,0.0653,89999.0,89998.0,0.01327714]
[1765256592809,0.0653,89999.0,89998.0,0.04104714]
[1765256595406,0.0653,89999.0,89998.0,0.01327714]
[1765256600117,0.0653,89999.0,89998.0,0.06295714]
[1765256600308,0.0653,89999.0,89998.0,0.09261714]
[1765256605215,0.0653,89999.0,89998.0,0.08150674]
[1765256607123,0.0764103,89999.0,89998.0,0.08150674]
[1765256608415,0.0653,89999.0,89998.0,0.08150674]
[1765256616031,0.4553,89999.0,89998.0,0.00216674]
[1765256616327,0.07504,89981.0,89980.0,0.0904525]
[1765256617430,0.07604,89981.0,89980.0,0.08034]
[1765256617732,0.07704,89981.0,89980.0,0.08134]
[1765256622527,0.07704,89981.0,89980.0,0.26134]
[1765256622827,0.07704,89981.0,89980.0,0.47134]
[1765256629642,0.002,89981.0,89980.0,0.47134]
[1765256629934,0.04457,89981.0,89980.0,0.47134]
[1765256630339,0.09144,89981.0,89980.0,0.47134]
[1765256634037,0.04457,89981.0,89980.0,0.52134]
[1765256634237,0.04457,89981.0,89980.0,0.47134]
[1765256635446,0.08812,89981.0,89980.0,0.47134]
[1765256636441,0.002,89981.0,89980.0,0.47134]
[1765256636746,0.04633,89981.0,89980.0,0.47134]
[1765256638245,0.08988,89981.0,89980.0,0.47134]
[1765256641244,0.08988,89981.0,89980.0,0.19134]
[1765256642453,0.08988,89981.0,89980.0,0.08134]
[1765256652760,0.002,89981.0,89980.0,0.08134]
[1765256653564,0.002,89981.0,89980.0,0.46134]
[1765256654156,0.002,89981.0,89980.0,0.41134]
[1765256656161,0.04129,89981.0,89980.0,0.41134]
[1765256666366,0.08019,89981.0,89980.0,0.41134]
[1765256668103,0.50589484,89981.0,89980.0,0.332]
[1765256668260,0.0893044,89966.0,89965.0,0.00111155]
[1765256668464,0.02381,89946.0,89943.0,0.0111171]
[1765256668661,0.07819,89944.0,89943.0,0.0523771]
[1765256668862,0.07819,89936.0,89935.0,0.07957]
[1765256669067,0.07819,89936.0,89935.0,0.0906882]
[1765256670174,0.08119,89936.0,89935.0,0.0916882]
[1765256670369,0.08219,89936.0,89935.0,0.0926882]
[1765256671467,0.08219,89936.0,89935.0,0.002]
[1765256671669,0.48219,89936.0,89935.0,0.002]
[1765256673366,0.16219,89936.0,89935.0,0.08157]
[1765256673567,0.08219,89936.0,89935.0,0.0926882]
[1765256674776,0.08219,89936.0,89935.0,0.08157]
[1765256677680,0.47219,89936.0,89935.0,0.002]
[1765256680665,0.0893091,89928.0,89927.0,0.00016674]
[1765256680871,0.4993091,89928.0,89927.0,0.00016674]
[1765256681870,0.5063091,89928.0,89927.0,0.00216674]
[1765256682377,0.07925,89911.0,89910.0,0.17479063]
[1765256682568,0.07925,89911.0,89910.0,0.07991]
[1765256683267,0.09424,89909.0,89908.0,0.05377874]
[1765256683471,0.45424,89909.0,89908.0,9.874e-05]
[1765256683671,0.15424,89909.0,89908.0,0.05377874]
[1765256683873,0.15424,89909.0,89908.0,0.09242874]
[1765256684482,0.15424,89909.0,89908.0,9.874e-05]
[1765256684682,0.41424,89909.0,89908.0,0.09242874]
[1765256685281,0.41624,89909.0,89908.0,0.09342874]
[1765256685668,0.41524,89909.0,89908.0,0.09242874]
[1765256685885,0.41624,89909.0,89908.0,0.09342874]
[1765256686379,0.17624,89909.0,89908.0,0.09342874]
[1765256687489,0.09624,89909.0,89908.0,0.09342874]
[1765256687991,0.09624,89909.0,89908.0,0.09442874]
[1765256688378,0.09424,89909.0,89908.0,0.09242874]
[1765256688689,0.09624,89909.0,89908.0,0.09442874]
[1765256689088,0.10124,89909.0,89908.0,0.09342874]
[1765256689386,0.10324,89909.0,89908.0,0.09342874]
[1765256691077,0.09724,89909.0,89908.0,0.09242874]
[1765256691380,0.008,89909.0,89908.0,0.52342874]
[1765256691683,0.003,89909.0,89908.0,0.52242874]
[1765256691887,0.05928,89909.0,89908.0,0.52342874]
[1765256692081,0.06228,89909.0,89908.0,0.52342874]
[1765256692276,0.003,89909.0,89908.0,0.52242874]
[1765256692478,0.09488063,89960.0,89939.0,0.09233]
[1765256692479,0.09424,89940.0,89939.0,0.09233]
[1765256693483,0.02262,89955.0,89947.0,0.1034467]
[1765256693484,0.09440674,89948.0,89947.0,0.1034467]
[1765256694087,0.09440674,89948.0,89947.0,0.09233]
[1765256694391,0.09284408,89948.0,89947.0,0.09233]
[1765256694592,0.09784408,89948.0,89947.0,0.09333]
[1765256695091,0.09384408,89948.0,89947.0,0.09333]
[1765256695279,0.09484408,89948.0,89947.0,0.09433]
[1765256695788,0.09384408,89948.0,89947.0,0.09633]
[1765256695988,0.09484408,89948.0,89947.0,0.09933]
[1765256696881,0.06097724,89948.0,89947.0,0.09933]
[1765256697284,0.05997724,89948.0,89947.0,0.09633]
[1765256697480,0.05997724,89948.0,89947.0,0.09333]
[1765256697683,0.06097724,89948.0,89947.0,0.09433]
[1765256698095,0.05897724,89948.0,89947.0,0.09233]
[1765256698284,0.06697724,89948.0,89947.0,0.09433]
[1765256698793,0.06797724,89948.0,89947.0,0.09433]
[1765256700186,0.48797724,89948.0,89947.0,0.09433]
[1765256700387,0.06397724,89948.0,89947.0,0.09333]
[1765256700686,0.06697724,89948.0,89947.0,0.09433]
[1765256700894,0.06197724,89948.0,89947.0,0.09333]
[1765256701097,0.06697724,89948.0,89947.0,0.09433]
[1765256701391,0.02501724,89948.0,89947.0,0.52433]
[1765256701694,0.002,89948.0,89947.0,0.52433]
[1765256701891,0.00016674,89956.0,89947.0,0.52433]
[1765256702092,0.05444674,89956.0,89955.0,0.09233]
[1765256702281,0.05444674,89956.0,89955.0,0.1034457]
[1765256702488,0.00016674,89956.0,89955.0,0.4834457]
[1765256704497,0.00216674,89956.0,89955.0,0.4844457]
[1765256704999,0.00316674,89956.0,89955.0,0.4854457]
[1765256706298,0.00316674,89956.0,89955.0,0.5354457]
[1765256706699,0.00316674,89956.0,89955.0,0.4854457]
[1765256710798,0.00316674,89956.0,89955.0,0.5163457]
[1765256716704,0.10635674,89956.0,89955.0,0.5163457]
[1765256717805,0.05571674,89956.0,89955.0,0.5163457]
[1765256719711,0.00316674,89956.0,89955.0,0.5163457]
[1765256720818,0.10635674,89956.0,89955.0,0.1054457]
[1765256722009,0.49635674,89956.0,89955.0,0.002]
[1765256722212,0.10319,89932.0,89931.0,0.10217674]
[1765256722410,0.10319,89932.0,89931.0,0.11329544]
[1765256723116,0.10319,89945.0,89944.0,0.1131271]
[1765256724215,0.00016674,89956.0,89955.0,0.10201]
[1765256724412,0.10319,89955.0,89954.0,0.0111158]
[1765256724613,0.12902228,89955.0,89954.0,0.0603458]
[1765256726121,0.13002228,89955.0,89954.0,0.0603458]
[1765256726422,0.13102228,89955.0,89954.0,0.001]
[1765256727519,0.53102228,89955.0,89954.0,0.001]
[1765256729412,0.34102228,89955.0,89954.0,0.001]
[1765256729921,0.34102228,89955.0,89954.0,0.10301]
[1765256731306,0.31519,89955.0,89954.0,0.10301]
[1765256732725,0.31519,89955.0,89954.0,0.001]
[1765256733112,0.31519,89955.0,89954.0,0.05023]
[1765256733620,0.31519,89955.0,89954.0,0.001]
[1765256738829,0.34665,89955.0,89954.0,0.001]
[1765256739033,0.37246964,89955.0,89954.0,0.001]
[1765256739332,0.34665,89955.0,89954.0,0.001]
[1765256739636,0.34665,89955.0,89954.0,0.10301]
[1765256739829,0.34665,89955.0,89954.0,0.05023]
[1765256740017,0.34665,89955.0,89954.0,0.001]
[1765256741328,0.37247104,89955.0,89954.0,0.001]
[1765256741633,0.37247104,89955.0,89930.0,0.12777946]
[1765256741634,0.10319,89932.0,89931.0,0.11329544]
[1765256742833,0.10519,89932.0,89931.0,0.11829544]
[1765256743533,0.50519,89932.0,89931.0,0.00516674]
[1765256743730,0.5163086,89932.0,89931.0,0.00516674]
[1765256745122,0.50519,89932.0,89931.0,0.00516674]
[1765256745529,0.50619,89932.0,89931.0,0.04990674]
[1765256745932,0.50619,89932.0,89931.0,0.04890674]
[1765256749638,0.10619,89932.0,89931.0,0.09807674]
[1765256751536,0.04864,89932.0,89931.0,0.09807674]
[1765256751733,0.09918,89932.0,89931.0,0.09807674]
[1765256754740,0.44918,89932.0,89931.0,0.09807674]
[1765256755244,0.44918,89932.0,89931.0,0.04890674]
[1765256755834,0.44918,89932.0,89931.0,0.09807674]
[1765256761541,0.20918,89932.0,89931.0,0.09807674]
[1765256763052,0.09918,89932.0,89931.0,0.09807674]
[1765256763656,0.04864,89932.0,89931.0,0.09807674]
[1765256765056,0.003,89932.0,89931.0,0.09807674]
[1765256765556,0.04592,89932.0,89931.0,0.09807674]
[1765256765756,0.0896,89932.0,89931.0,0.09807674]
[1765256779268,0.0896,89932.0,89931.0,0.47807674]
[1765256779463,0.01128234,89956.0,89954.0,0.08412]
[1765256779665,0.08645674,89956.0,89955.0,0.08412]
[1765256779874,0.1124076,89956.0,89955.0,0.08412]
[1765256780253,0.08645674,89956.0,89955.0,0.08412]
[1765256781476,0.08745674,89956.0,89955.0,0.08712]
[1765256782061,0.08845674,89956.0,89955.0,0.08812]
[1765256782664,0.08745674,89956.0,89955.0,0.08512]
[1765256782854,0.08945674,89956.0,89955.0,0.09112]
[1765256790476,0.53115022,89956.0,89955.0,0.00383322]
[1765256791969,0.53115022,89956.0,89932.0,0.0952385]
[1765256791970,0.08629,89933.0,89932.0,0.0952385]
[1765256792172,0.45629,89933.0,89932.0,0.08412]
[1765256792763,0.45629,89933.0,89932.0,0.04211]
[1765256793174,0.45629,89933.0,89932.0,0.08412]
[1765256793377,0.45629,89933.0,89932.0,0.08612]
[1765256793677,0.45729,89933.0,89932.0,0.04411]
[1765256794077,0.45829,89933.0,89932.0,0.04411]
[1765256796883,0.45829,89933.0,89932.0,0.08612]
[1765256798472,0.08829,89933.0,89932.0,0.08612]
[1765256805891,0.08829,89933.0,89932.0,0.11233]
[1765256808292,0.002,89933.0,89932.0,0.49233]
[1765256812296,0.0509259,89954.0,89953.0,0.07965]
[1765256812610,0.3450159,89954.0,89953.0,0.07965]
[1765256813595,0.3460159,89954.0,89953.0,0.07965]
[1765256814199,0.3480159,89954.0,89953.0,0.08365]
[1765256814511,0.0869,89954.0,89953.0,0.08365]
[1765256815414,0.11217173,89954.0,89953.0,0.08365]
[1765256815614,0.29217173,89954.0,89953.0,0.08365]
[1765256815805,0.11217173,89954.0,89953.0,0.08365]
[1765256820313,0.0869,89954.0,89953.0,0.08365]
[1765256827020,0.0869,89954.0,89953.0,0.04182]
[1765256827220,0.0869,89954.0,89953.0,0.07675]
[1765256841034,0.4369,89954.0,89953.0,0.07675]
[1765256841330,0.46236793,89954.0,89953.0,0.07675]
[1765256849035,0.46236793,89954.0,89953.0,0.004]
[1765256849440,0.07126,89932.0,89931.0,0.08004544]
[1765256849641,0.50126,89932.0,89931.0,0.08004544]
[1765256850343,0.50126,89932.0,89931.0,0.01128544]
[1765256850743,0.50226,89932.0,89931.0,0.01228544]
[1765256851740,0.50526,89932.0,89931.0,0.00316674]
[1765256851936,0.50526,89932.0,89931.0,0.01428544]
[1765256852648,0.50526,89932.0,89931.0,0.01328544]
[1765256852844,0.50826,89932.0,89931.0,0.01228544]
[1765256853752,0.51026,89932.0,89931.0,0.01228544]
[1765256854152,0.51026,89932.0,89931.0,0.04588544]
[1765256854349,0.51026,89932.0,89931.0,0.01228544]
[1765256854652,0.51226,89932.0,89931.0,0.01228544]
[1765256854951,0.51226,89932.0,89931.0,0.04588544]
[1765256855945,0.51226,89932.0,89931.0,0.08104544]
[1765256856446,0.51226,89932.0,89931.0,0.44104544]
[1765256856447,0.011,89932.0,89931.0,0.44104544]
[1765256857149,0.04729,89932.0,89931.0,0.44104544]
[1765256859764,0.08226,89932.0,89931.0,0.19104544]
[1765256860365,0.08226,89932.0,89931.0,0.08104544]
[1765256866478,0.44226,89932.0,89931.0,0.08104544]
[1765256866977,0.19226,89932.0,89931.0,0.08104544]
[1765256867972,0.08226,89932.0,89931.0,0.08104544]
[1765256872575,0.08226,89932.0,89931.0,0.20104544]
[1765256876687,0.011,89932.0,89931.0,0.45104544]
[1765256879876,0.011,89932.0,89931.0,0.20104544]
[1765256880074,0.04324,89932.0,89931.0,0.20104544]
[1765256880376,0.07861,89932.0,89931.0,0.20104544]
[1765256880782,0.011,89932.0,89931.0,0.20104544]
[1765256881089,0.06761,89947.0,89946.0,0.0777568]
[1765256882580,0.06861,89947.0,89946.0,0.0787568]
[1765256883088,0.06961,89947.0,89946.0,0.0797568]
[1765256887095,0.42961,89947.0,89946.0,0.0797568]
[1765256887593,0.21961,89947.0,89946.0,0.0797568]
[1765256888178,0.06961,89947.0,89946.0,0.0797568]
[1765256888781,0.06961,89947.0,89946.0,0.06864]
[1765256889186,0.49961,89947.0,89946.0,0.06864]
[1765256891593,0.15961,89947.0,89946.0,0.06864]
[1765256891793,0.06961,89947.0,89946.0,0.06864]
[1765256896886,0.43961,89947.0,89946.0,0.06864]
[1765256899192,0.43961,89947.0,89946.0,0.002]
[1765256899193,0.46495883,89947.0,89946.0,0.002]
[1765256899993,0.06069,89932.0,89931.0,0.06084674]
[1765256900892,0.06069,89932.0,89931.0,0.07196544]
[1765256901097,0.06069,89932.0,89931.0,0.07296544]
[1765256901295,0.06269,89932.0,89931.0,0.07296544]
[1765256902199,0.06669,89932.0,89931.0,0.07396544]
[1765256909601,0.42669,89932.0,89931.0,0.07396544]
[1765256909800,0.43634,89932.0,89931.0,0.00216674]
[1765256910002,0.43634,89932.0,89917.0,0.0111204]
[1765256910003,0.06069,89918.0,89917.0,0.0111204]
[1765256910297,0.06069,89918.0,89907.0,0.0111216]
[1765256910298,0.06069,89909.0,89907.0,0.0111216]
[1765256910504,0.46069,89909.0,89907.0,0.0111216]
[1765256911006,0.46069,89909.0,89908.0,0.02853874]
[1765256911203,0.46069,89909.0,89908.0,0.06077874]
[1765256912403,0.46269,89909.0,89908.0,0.06577874]
[1765256913103,0.46369,89909.0,89908.0,0.06577874]
[1765256917106,0.19369,89909.0,89908.0,0.06577874]
[1765256918008,0.44369,89909.0,89908.0,0.06577874]
[1765256919298,0.20369,89909.0,89908.0,0.06577874]
[1765256919697,0.47369,89909.0,89908.0,0.00509874]
[1765256920105,0.47369,89909.0,89908.0,0.03353874]
[1765256920306,0.47369,89909.0,89908.0,0.07690024]
[1765256921515,0.24369,89909.0,89908.0,0.07690024]
[1765256922814,0.49369,89909.0,89908.0,0.07690024]
[1765256924106,0.49369,89909.0,89908.0,0.00509874]
[1765256925008,0.5048114,89909.0,89908.0,0.00509874]
[1765256925720,0.2448114,89909.0,89908.0,0.00509874]
[1765256927608,0.2448114,89909.0,89908.0,0.03382874]
[1765256928015,0.5048114,89909.0,89908.0,0.00509874]
[1765256928408,0.05606,89901.0,89900.0,0.06867914]
[1765256929217,0.40606,89901.0,89900.0,0.06867914]
[1765256929407,0.40613838,89901.0,89900.0,0.06867914]
[1765256929608,0.40813838,89901.0,89900.0,0.06867914]
[1765256930517,0.41213838,89901.0,89900.0,0.06867914]
[1765256931716,0.41213838,89901.0,89900.0,0.00016674]
[1765256931921,0.02834,89893.0,89892.0,0.0111234]
[1765256932104,0.05606,89893.0,89892.0,0.0398534]
[1765256932309,0.05606,89893.0,89892.0,0.0685134]
[1765256932613,0.05606,89877.0,89876.0,0.0869355]
[1765256932917,0.05615874,89877.0,89876.0,0.4569355]
[1765256933118,0.05615874,89877.0,89876.0,0.46812642]
[1765256933313,9.874e-05,89877.0,89876.0,0.51812642]
[1765256933919,0.00109874,89877.0,89876.0,0.46812642]
[1765256934223,0.00309874,89877.0,89876.0,0.51812642]
[1765256940908,0.00016684,89885.0,89884.0,0.0869345]
[1765256940909,4e-08,89885.0,89884.0,0.0869345]
[1765256941114,0.05606,89901.0,89900.0,0.07243]
[1765256941315,0.05606,89901.0,89900.0,0.42243]
[1765256942821,0.06306,89901.0,89900.0,0.42243]
[1765256944221,0.06106,89901.0,89900.0,0.42243]
[1765256944415,0.06206,89901.0,89900.0,0.42343]
[1765256945022,0.06106,89901.0,89900.0,0.42243]
[1765256945221,0.06206,89901.0,89900.0,0.42343]
[1765256946022,0.06206,89901.0,89900.0,0.351]
[1765256946223,0.06206,89901.0,89892.0,0.00016684]
[1765256946224,0.0584,89893.0,89892.0,0.00016684]
[1765256946417,0.4284,89893.0,89892.0,0.00016684]
[1765256947330,0.4304,89893.0,89892.0,0.00016684]
[1765256947513,0.0584,89871.0,89870.0,0.05644]
[1765256947825,0.0584,89871.0,89870.0,0.0675662]
[1765256948923,0.003,89871.0,89870.0,0.0685662]
[1765256949512,0.0614,89871.0,89870.0,0.0685662]
[1765256949721,0.0614,89871.0,89870.0,0.03007]
[1765256950216,0.03157,89871.0,89870.0,0.05744]
[1765256950412,0.0614,89871.0,89870.0,0.05744]
[1765256950816,0.0604,89871.0,89870.0,0.05644]
[1765256951023,0.0614,89871.0,89870.0,0.05644]
[1765256953732,0.4614,89871.0,89870.0,0.05644]
[1765256954429,0.05774,89866.0,89865.0,0.06778959]
[1765256955618,0.05974,89866.0,89865.0,0.06778959]
[1765256956326,0.4508667,89866.0,89865.0,0.00018085]
[1765256956528,0.4518667,89866.0,89865.0,0.05573085]
[1765256956732,0.44074,89866.0,89865.0,0.05573085]
[1765256956931,0.17074,89866.0,89865.0,0.05573085]
[1765256957234,0.40074,89866.0,89865.0,0.05573085]
[1765256957533,0.17074,89866.0,89865.0,0.05573085]
[1765256957736,0.49074,89866.0,89865.0,0.05573085]
[1765256958523,0.48874,89866.0,89865.0,0.05573085]
[1765256958727,0.49074,89866.0,89865.0,0.05573085]
[1765256959837,0.49074,89866.0,89865.0,0.02800085]
[1765256960134,0.49074,89866.0,89865.0,0.05573085]
[1765256960336,0.49074,89866.0,89865.0,0.00018085]
[1765256960531,0.49074,89866.0,89865.0,0.05573085]
[1765256961034,0.47074,89866.0,89865.0,0.05573085]
[1765256961229,0.05774,89863.0,89862.0,0.00011178]
[1765256961438,0.47774,89863.0,89862.0,0.00011178]
[1765256961639,0.47774,89863.0,89862.0,0.05566178]
[1765256962430,0.47974,89863.0,89862.0,0.05566178]
[1765256962936,0.48074,89863.0,89862.0,0.05566178]
[1765256963140,0.48074,89863.0,89862.0,0.00011178]
[1765256964638,0.21074,89863.0,89862.0,0.00011178]
[1765256965031,0.43074,89863.0,89862.0,0.00011178]
[1765256966639,0.21074,89863.0,89862.0,0.05566178]
[1765256966841,0.06074,89863.0,89862.0,0.07248178]
[1765256971236,0.46074,89863.0,89862.0,0.05566178]
[1765256973237,0.06074,89863.0,89862.0,0.05566178]
[1765256974734,0.0718671,89863.0,89862.0,0.05566178]
[1765256974930,0.4518671,89863.0,89862.0,0.05566178]
[1765256975139,0.4518671,89863.0,89862.0,0.00011178]
[1765256975447,0.4518671,89863.0,89862.0,0.05566178]
[1765256976037,0.1318671,89863.0,89862.0,0.06678898]
[1765256976233,0.1318671,89863.0,89862.0,0.05566178]
[1765256976547,0.4618671,89863.0,89862.0,0.00011178]
[1765256977543,0.02956,89854.0,89853.0,0.00014188]
[1765256977847,0.4588682,89854.0,89853.0,0.00014188]
[1765256978635,0.4588682,89854.0,89840.0,0.0011131]
[1765256978636,0.0688698,89841.0,89840.0,0.0011131]
[1765256978834,0.4288698,89841.0,89840.0,0.0011131]
[1765256979142,0.45419695,89841.0,89840.0,0.0011131]
[1765256979549,0.45428461,89841.0,89840.0,0.0011131]
[1765256979742,0.19428461,89841.0,89840.0,0.0566631]
[1765256980141,0.07095746,89841.0,89840.0,0.0566631]
[1765256980443,0.43982766,89841.0,89840.0,0.0566631]
[1765256980844,0.05982766,89841.0,89840.0,0.067793]
[1765256981238,0.05982766,89841.0,89840.0,0.0566631]
[1765256981646,0.06082766,89841.0,89840.0,0.0566631]
[1765256982245,0.46082766,89841.0,89840.0,0.0011131]
[1765256982948,0.18082766,89841.0,89840.0,0.0572631]
[1765256984747,0.06082766,89841.0,89840.0,0.0572631]
[1765256993155,0.42082766,89841.0,89840.0,0.0572631]
[1765256995863,0.06082766,89841.0,89840.0,0.0572631]
[1765256997963,0.26082766,89841.0,89840.0,0.0572631]
[1765256998576,0.06082766,89841.0,89840.0,0.0572631]
[1765257001076,0.06082766,89841.0,89840.0,0.0011131]
[1765257001274,0.23082766,89841.0,89840.0,0.0011131]
[1765257001473,0.44082766,89841.0,89840.0,0.0011131]
[1765257002364,0.10082766,89841.0,89840.0,0.0593831]
[1765257002672,0.06082766,89841.0,89840.0,0.0768031]
[1765257002876,0.06082766,89841.0,89840.0,0.0593831]
[1765257005270,0.06082766,89841.0,89840.0,0.070513]
[1765257005580,0.05965766,89841.0,89840.0,0.087933]
[1765257006475,0.07078746,89841.0,89840.0,0.087933]
[1765257007063,0.07078746,89841.0,89840.0,0.0768031]
[1765257007767,0.07078746,89841.0,89840.0,0.0593831]
[1765257007964,0.47078746,89841.0,89840.0,0.0593831]
[1765257008773,0.47078746,89841.0,89840.0,0.0011131]
[1765257009381,0.47078746,89841.0,89840.0,0.0298631]
[1765257009575,0.19078746,89841.0,89840.0,0.0298631]
[1765257009776,0.19078746,89841.0,89840.0,0.0583031]
[1765257010378,0.50078746,89841.0,89840.0,0.0583031]
[1765257010678,0.50078746,89841.0,89840.0,0.0298631]
[1765257011181,0.50078746,89841.0,89840.0,0.0583031]
[1765257013073,0.52618542,89841.0,89840.0,0.0011131]
[1765257013380,0.52618542,89841.0,89820.0,0.01697]
[1765257013381,0.0565,89824.0,89823.0,0.05735]
[1765257013588,0.05661677,89824.0,89823.0,0.05735]
[1765257014682,0.05861677,89824.0,89823.0,0.05735]
[1765257015588,0.05961677,89824.0,89823.0,0.05735]
[1765257017174,0.05961677,89824.0,89823.0,0.02738]
[1765257017683,0.05961677,89824.0,89823.0,0.05735]
[1765257020182,0.0676329,89816.0,89815.0,0.05846341]
[1765257021487,0.0696329,89816.0,89815.0,0.06959641]
[1765257022179,0.0696329,89816.0,89815.0,0.08758641]
[1765257022488,0.0706329,89816.0,89815.0,0.08758641]
[1765257022687,0.0706329,89816.0,89815.0,0.06959641]
[1765257023684,0.0706329,89816.0,89815.0,0.03962641]